[Event "Titled Tuesday Blitz January 25 2022"]
[White "Kislinsky, Alexey"]
[Black "Bauer, Thomas"]
[WhiteFideId "14108801"]
[BlackFideId "1639293"]
[WhiteElo "2335"]
[BlackElo "2220"]
[Result "1-0"]
[Round "02"]
[TimeControl "180+1"]
[Date "2022.01.26"]
[WhiteClock "0:00:31"]
[BlackClock "0:00:02"]

1. e4 {[%clk 0:03:00]}  d5 {[%clk 0:02:45]} 2. exd5 {[%clk 0:03:00]}  Qxd5 {[%clk 0:02:46]} 3. Nc3 {[%clk 0:02:59]}  Qd8 {[%clk 0:02:46]} 4. d4 {[%clk 0:02:59]}  Nf6 {[%clk 0:02:47]} 5. Bd3 {[%clk 0:02:58]}  g6 {[%clk 0:02:47]} 6. Bg5 {[%clk 0:02:57]}  Bg7 {[%clk 0:02:48]} 7. Qd2 {[%clk 0:02:57]}  c6 {[%clk 0:02:47]} 8. Nge2 {[%clk 0:02:55]}  Qb6 {[%clk 0:02:42]} 9. O-O-O {[%clk 0:02:51]}  h6 {[%clk 0:02:39]} 10. Bf4 {[%clk 0:02:49]}  a5 {[%clk 0:02:37]} 11. h4 {[%clk 0:02:46]}  h5 {[%clk 0:02:28]} 12. Kb1 {[%clk 0:02:45]}  Be6 {[%clk 0:02:24]} 13. f3 {[%clk 0:02:40]}  Nbd7 {[%clk 0:02:18]} 14. Rhe1 {[%clk 0:02:32]}  a4 {[%clk 0:02:14]} 15. a3 {[%clk 0:02:31]}  Qa5 {[%clk 0:02:09]} 16. Ne4 {[%clk 0:02:14]}  Nxe4 {[%clk 0:01:52]} 17. Bxe4 {[%clk 0:01:59]}  Qxd2 {[%clk 0:01:46]} 18. Bxd2 {[%clk 0:01:56]}  Nf6 {[%clk 0:01:38]} 19. Bd3 {[%clk 0:01:53]}  Nd5 {[%clk 0:01:25]} 20. c3 {[%clk 0:01:42]}  Bf5 {[%clk 0:01:17]} 21. Bxf5 {[%clk 0:01:39]}  gxf5 {[%clk 0:01:18]} 22. Nf4 {[%clk 0:01:39]}  e6 {[%clk 0:01:11]} 23. c4 {[%clk 0:01:21]}  Nb6 {[%clk 0:01:07]} 24. d5 {[%clk 0:01:16]}  e5 {[%clk 0:00:55]} 25. dxc6 {[%clk 0:00:57]}  bxc6 {[%clk 0:00:54]} 26. c5 {[%clk 0:00:57]}  Nc4 {[%clk 0:00:45]} 27. Bc3 {[%clk 0:00:56]}  Rb8 {[%clk 0:00:19]} 28. Kc2 {[%clk 0:00:55]}  Kf8 {[%clk 0:00:17]} 29. Nd3 {[%clk 0:00:36]}  f6 {[%clk 0:00:09]} 30. Nb4 {[%clk 0:00:35]}  Rb5 {[%clk 0:00:06]} 31. Nxc6 {[%clk 0:00:33]}  Rxc5 {[%clk 0:00:04]} 32. Bb4 {[%clk 0:00:33]}  Ne3+ {[%clk 0:00:02]} 33. Kb1 {[%clk 0:00:32]}  Nxd1 {[%clk 0:00:02]} 34. Rxd1 {[%clk 0:00:32]}  Kf7 {[%clk 0:00:01]} 35. Bxc5 {[%clk 0:00:32]}  Rc8 {[%clk 0:00:02]} 36. Rd7+ {[%clk 0:00:31]} 1-0


[Site "https://www.chess.com"]

[Event "Titled Tuesday Blitz January 25 2022"]
[White "Kollars, Dmitrij"]
[Black "Marczuk, Dominik"]
[WhiteFideId "12909572"]
[BlackFideId "1111264"]
[WhiteElo "2584"]
[BlackElo "1912"]
[Result "1-0"]
[Round "02"]
[TimeControl "180+1"]
[Date "2022.01.26"]
[WhiteClock "0:02:04"]
[BlackClock "0:00:12"]

1. Nf3 {[%clk 0:03:00]}  Nf6 {[%clk 0:02:54]} 2. g3 {[%clk 0:02:59]}  g6 {[%clk 0:02:55]} 3. Bg2 {[%clk 0:02:59]}  Bg7 {[%clk 0:02:55]} 4. O-O {[%clk 0:03:00]}  O-O {[%clk 0:02:55]} 5. d4 {[%clk 0:03:01]}  d6 {[%clk 0:02:54]} 6. a4 {[%clk 0:02:58]}  Nbd7 {[%clk 0:02:44]} 7. a5 {[%clk 0:02:58]}  a6 {[%clk 0:02:43]} 8. Nc3 {[%clk 0:02:56]}  e5 {[%clk 0:02:43]} 9. e4 {[%clk 0:02:54]}  exd4 {[%clk 0:02:17]} 10. Nxd4 {[%clk 0:02:54]}  Nc5 {[%clk 0:02:17]} 11. h3 {[%clk 0:02:44]}  Re8 {[%clk 0:02:16]} 12. Re1 {[%clk 0:02:42]}  Ne6 {[%clk 0:02:05]} 13. Be3 {[%clk 0:02:41]}  Nxd4 {[%clk 0:02:04]} 14. Bxd4 {[%clk 0:02:42]}  Be6 {[%clk 0:02:02]} 15. Qd2 {[%clk 0:02:38]}  Qd7 {[%clk 0:02:02]} 16. Kh2 {[%clk 0:02:35]}  Rad8 {[%clk 0:01:53]} 17. Rad1 {[%clk 0:02:34]}  c5 {[%clk 0:01:17]} 18. Be3 {[%clk 0:02:23]}  Qc7 {[%clk 0:01:17]} 19. Bg5 {[%clk 0:02:11]}  Qxa5 {[%clk 0:01:09]} 20. Bxf6 {[%clk 0:02:05]}  Bxf6 {[%clk 0:01:09]} 21. Nd5 {[%clk 0:02:05]}  Qxd2 {[%clk 0:00:12]} 22. Nxf6+ {[%clk 0:02:04]} 1-0


[Site "https://www.chess.com"]

[Event "Titled Tuesday Blitz January 25 2022"]
[White "Krishnan, Varun"]
[Black "Bryakin, Mikhail"]
[WhiteFideId "5054508"]
[BlackFideId "4165314"]
[WhiteElo "2536"]
[BlackElo "2421"]
[Result "0-1"]
[Round "02"]
[TimeControl "180+1"]
[Date "2022.01.26"]
[WhiteClock "0:00:09"]
[BlackClock "0:00:26"]

1. e4 {[%clk 0:03:00]}  c5 {[%clk 0:02:55]} 2. Nf3 {[%clk 0:02:59]}  e6 {[%clk 0:02:53]} 3. d4 {[%clk 0:02:58]}  cxd4 {[%clk 0:02:52]} 4. Nxd4 {[%clk 0:02:59]}  Nc6 {[%clk 0:02:53]} 5. Nc3 {[%clk 0:02:58]}  Nf6 {[%clk 0:02:52]} 6. Be2 {[%clk 0:02:58]}  Bb4 {[%clk 0:02:52]} 7. O-O {[%clk 0:02:54]}  Bxc3 {[%clk 0:02:50]} 8. bxc3 {[%clk 0:02:55]}  Nxe4 {[%clk 0:02:47]} 9. Bd3 {[%clk 0:02:38]}  Nxc3 {[%clk 0:02:36]} 10. Qg4 {[%clk 0:02:33]}  O-O {[%clk 0:02:29]} 11. Nf3 {[%clk 0:02:13]}  f5 {[%clk 0:02:23]} 12. Qh3 {[%clk 0:02:04]}  Nd5 {[%clk 0:02:21]} 13. c4 {[%clk 0:01:57]}  Nf6 {[%clk 0:02:21]} 14. Ba3 {[%clk 0:01:53]}  d6 {[%clk 0:02:16]} 15. Rad1 {[%clk 0:01:47]}  Qe7 {[%clk 0:02:12]} 16. Rfe1 {[%clk 0:01:37]}  Qc7 {[%clk 0:01:59]} 17. Ng5 {[%clk 0:01:22]}  Nd4 {[%clk 0:01:37]} 18. Bb2 {[%clk 0:01:14]}  e5 {[%clk 0:01:31]} 19. Bxd4 {[%clk 0:01:07]}  exd4 {[%clk 0:01:32]} 20. Nf3 {[%clk 0:00:33]}  Ne4 {[%clk 0:01:13]} 21. Nxd4 {[%clk 0:00:30]}  Bd7 {[%clk 0:01:13]} 22. Qh4 {[%clk 0:00:24]}  Rae8 {[%clk 0:01:09]} 23. Bxe4 {[%clk 0:00:20]}  fxe4 {[%clk 0:01:05]} 24. Rxe4 {[%clk 0:00:21]}  Qxc4 {[%clk 0:00:56]} 25. h3 {[%clk 0:00:16]}  Qf7 {[%clk 0:00:47]} 26. Rxe8 {[%clk 0:00:13]}  Rxe8 {[%clk 0:00:47]} 27. Nf3 {[%clk 0:00:13]}  h6 {[%clk 0:00:42]} 28. Rxd6 {[%clk 0:00:13]}  Bc6 {[%clk 0:00:42]} 29. Rd3 {[%clk 0:00:12]}  Qxa2 {[%clk 0:00:40]} 30. Qg3 {[%clk 0:00:12]}  Qa1+ {[%clk 0:00:36]} 31. Kh2 {[%clk 0:00:11]}  Qf6 {[%clk 0:00:36]} 32. Rd6 {[%clk 0:00:11]}  Qe7 {[%clk 0:00:32]} 33. Rxh6 {[%clk 0:00:10]}  Bxf3 {[%clk 0:00:32]} 34. gxf3 {[%clk 0:00:11]}  Qe5 {[%clk 0:00:31]} 35. Rg6 {[%clk 0:00:11]}  Qxg3+ {[%clk 0:00:31]} 36. fxg3 {[%clk 0:00:11]}  Re2+ {[%clk 0:00:27]} 37. Kg1 {[%clk 0:00:11]}  b5 {[%clk 0:00:23]} 38. Ra6 {[%clk 0:00:10]}  Re7 {[%clk 0:00:24]} 39. Kf2 {[%clk 0:00:10]}  b4 {[%clk 0:00:22]} 40. Ra4 {[%clk 0:00:10]}  Rb7 {[%clk 0:00:22]} 41. Ke3 {[%clk 0:00:10]}  b3 {[%clk 0:00:23]} 42. Ra1 {[%clk 0:00:10]}  a5 {[%clk 0:00:23]} 43. Kd3 {[%clk 0:00:10]}  a4 {[%clk 0:00:23]} 44. Kc3 {[%clk 0:00:09]}  b2 {[%clk 0:00:24]} 45. Rb1 {[%clk 0:00:09]}  a3 {[%clk 0:00:24]} 46. Kc2 {[%clk 0:00:09]}  a2 {[%clk 0:00:24]} 47. Rxb2 {[%clk 0:00:09]}  Rc7+ {[%clk 0:00:25]} 48. Kb3 {[%clk 0:00:09]}  a1=Q {[%clk 0:00:26]} 0-1


[Site "https://www.chess.com"]

[Event "Titled Tuesday Blitz January 25 2022"]
[White "Le, Tuan Minh"]
[Black "Rastbod, Ali"]
[WhiteFideId "12401153"]
[BlackFideId "12567477"]
[WhiteElo "2450"]
[BlackElo "2200"]
[Result "1-0"]
[Round "02"]
[TimeControl "180+1"]
[Date "2022.01.26"]
[WhiteClock "0:01:33"]
[BlackClock "0:01:11"]

1. d4 {[%clk 0:03:00]}  Nf6 {[%clk 0:02:59]} 2. Nf3 {[%clk 0:02:59]}  e6 {[%clk 0:02:59]} 3. Bf4 {[%clk 0:02:56]}  d5 {[%clk 0:02:54]} 4. e3 {[%clk 0:02:56]}  c5 {[%clk 0:02:52]} 5. c3 {[%clk 0:02:56]}  Bd6 {[%clk 0:02:51]} 6. Nbd2 {[%clk 0:02:56]}  Qc7 {[%clk 0:02:49]} 7. Bxd6 {[%clk 0:02:56]}  Qxd6 {[%clk 0:02:50]} 8. Ne5 {[%clk 0:02:56]}  O-O {[%clk 0:02:49]} 9. Bd3 {[%clk 0:02:56]}  Nc6 {[%clk 0:02:44]} 10. f4 {[%clk 0:02:56]}  Nd7 {[%clk 0:02:18]} 11. O-O {[%clk 0:02:53]}  f6 {[%clk 0:02:00]} 12. Qh5 {[%clk 0:02:52]}  f5 {[%clk 0:01:58]} 13. Ndf3 {[%clk 0:02:18]}  Ndxe5 {[%clk 0:01:57]} 14. fxe5 {[%clk 0:02:15]}  Qe7 {[%clk 0:01:56]} 15. g4 {[%clk 0:02:09]}  g6 {[%clk 0:01:55]} 16. Qh6 {[%clk 0:02:02]}  fxg4 {[%clk 0:01:18]} 17. Ng5 {[%clk 0:02:02]}  Bd7 {[%clk 0:01:19]} 18. Bxg6 {[%clk 0:01:33]}  hxg6 {[%clk 0:01:11]} 19. Rf6 {[%clk 0:01:33]} 1-0


[Site "https://www.chess.com"]

[Event "Titled Tuesday Blitz January 25 2022"]
[White "Maghsoodloo, Parham"]
[Black "Sokolovsky, Yahli"]
[WhiteFideId "12539929"]
[BlackFideId "2820242"]
[WhiteElo "2630"]
[BlackElo "1770"]
[Result "1-0"]
[Round "02"]
[TimeControl "180+1"]
[Date "2022.01.26"]
[WhiteClock "0:01:11"]
[BlackClock "0:00:03"]

1. d4 {[%clk 0:03:00]}  d6 {[%clk 0:02:55]} 2. Nc3 {[%clk 0:02:54]}  g6 {[%clk 0:02:50]} 3. e4 {[%clk 0:02:53]}  Bg7 {[%clk 0:02:50]} 4. Nf3 {[%clk 0:02:53]}  a6 {[%clk 0:02:50]} 5. Be2 {[%clk 0:02:52]}  b5 {[%clk 0:02:51]} 6. O-O {[%clk 0:02:52]}  Nd7 {[%clk 0:02:48]} 7. a4 {[%clk 0:02:52]}  b4 {[%clk 0:02:48]} 8. Nd5 {[%clk 0:02:53]}  a5 {[%clk 0:02:45]} 9. c3 {[%clk 0:02:53]}  e6 {[%clk 0:02:41]} 10. Ne3 {[%clk 0:02:48]}  bxc3 {[%clk 0:02:41]} 11. bxc3 {[%clk 0:02:49]}  Ne7 {[%clk 0:02:40]} 12. Rb1 {[%clk 0:02:48]}  O-O {[%clk 0:02:31]} 13. Ba3 {[%clk 0:02:48]}  Nb6 {[%clk 0:02:25]} 14. Qc2 {[%clk 0:02:48]}  Bd7 {[%clk 0:02:25]} 15. Bb5 {[%clk 0:02:49]}  Nc6 {[%clk 0:02:09]} 16. e5 {[%clk 0:02:39]}  Nc8 {[%clk 0:01:51]} 17. Qe4 {[%clk 0:02:23]}  d5 {[%clk 0:01:47]} 18. Qf4 {[%clk 0:02:23]}  Re8 {[%clk 0:01:35]} 19. Ng4 {[%clk 0:02:22]}  N8e7 {[%clk 0:00:47]} 20. Nf6+ {[%clk 0:02:14]}  Bxf6 {[%clk 0:00:47]} 21. exf6 {[%clk 0:02:15]}  Nf5 {[%clk 0:00:48]} 22. g4 {[%clk 0:02:15]}  Nd6 {[%clk 0:00:40]} 23. Ne5 {[%clk 0:01:57]}  Nb8 {[%clk 0:00:27]} 24. Qh6 {[%clk 0:01:30]}  Qxf6 {[%clk 0:00:22]} 25. Bxd7 {[%clk 0:01:29]}  Nxd7 {[%clk 0:00:19]} 26. Nxd7 {[%clk 0:01:30]}  Qf3 {[%clk 0:00:19]} 27. Ne5 {[%clk 0:01:21]}  Qxc3 {[%clk 0:00:20]} 28. Qe3 {[%clk 0:01:17]}  Qc2 {[%clk 0:00:14]} 29. Rfc1 {[%clk 0:01:14]}  Qxa4 {[%clk 0:00:15]} 30. Rxc7 {[%clk 0:01:14]}  Nb5 {[%clk 0:00:11]} 31. Rxf7 {[%clk 0:01:15]}  Qxd4 {[%clk 0:00:03]} 32. Qh6 {[%clk 0:01:11]} 1-0


[Site "https://www.chess.com"]

[Event "Titled Tuesday Blitz January 25 2022"]
[White "Maltsevskaya, Aleksandra"]
[Black "Weetik, Vjacheslav"]
[WhiteFideId "24174041"]
[BlackFideId "4153472"]
[WhiteElo "2283"]
[BlackElo "2469"]
[Result "0-1"]
[Round "02"]
[TimeControl "180+1"]
[Date "2022.01.26"]
[WhiteClock "0:00:04"]
[BlackClock "0:00:52"]

1. e4 {[%clk 0:02:30]}  c6 {[%clk 0:02:58]} 2. d4 {[%clk 0:02:28]}  d5 {[%clk 0:02:58]} 3. Nc3 {[%clk 0:02:29]}  dxe4 {[%clk 0:02:58]} 4. Nxe4 {[%clk 0:02:30]}  Nf6 {[%clk 0:02:58]} 5. Nxf6+ {[%clk 0:02:15]}  exf6 {[%clk 0:02:59]} 6. Bd3 {[%clk 0:02:15]}  Bd6 {[%clk 0:02:58]} 7. c3 {[%clk 0:02:15]}  O-O {[%clk 0:02:58]} 8. Qc2 {[%clk 0:02:15]}  Re8+ {[%clk 0:02:59]} 9. Ne2 {[%clk 0:02:15]}  h5 {[%clk 0:03:00]} 10. O-O {[%clk 0:02:15]}  h4 {[%clk 0:02:59]} 11. h3 {[%clk 0:02:15]}  Nd7 {[%clk 0:02:59]} 12. Bd2 {[%clk 0:02:13]}  Nf8 {[%clk 0:02:58]} 13. Rad1 {[%clk 0:02:13]}  Be6 {[%clk 0:02:56]} 14. c4 {[%clk 0:02:13]}  Rc8 {[%clk 0:02:56]} 15. Bf4 {[%clk 0:02:12]}  Ng6 {[%clk 0:02:44]} 16. Bxd6 {[%clk 0:02:00]}  Qxd6 {[%clk 0:02:44]} 17. Rfe1 {[%clk 0:02:01]}  Re7 {[%clk 0:02:30]} 18. b3 {[%clk 0:01:35]}  Rce8 {[%clk 0:02:06]} 19. Bxg6 {[%clk 0:00:52]}  fxg6 {[%clk 0:02:06]} 20. Qxg6 {[%clk 0:00:53]}  Bf7 {[%clk 0:01:56]} 21. Qg4 {[%clk 0:00:48]}  Qb4 {[%clk 0:01:38]} 22. Kf1 {[%clk 0:00:34]}  Qa5 {[%clk 0:01:21]} 23. d5 {[%clk 0:00:27]}  cxd5 {[%clk 0:01:17]} 24. cxd5 {[%clk 0:00:24]}  Bxd5 {[%clk 0:01:09]} 25. b4 {[%clk 0:00:18]}  Qb5 {[%clk 0:01:09]} 26. a4 {[%clk 0:00:17]}  Qc4 {[%clk 0:01:09]} 27. Rd4 {[%clk 0:00:09]}  Rxe2 {[%clk 0:00:53]} 28. Qxe2 {[%clk 0:00:04]}  Rxe2 {[%clk 0:00:52]} 0-1


[Site "https://www.chess.com"]

[Event "Titled Tuesday Blitz January 25 2022"]
[White "Nozdrachev, Leonid"]
[Black "Kucuksari, Kaan"]
[WhiteFideId "24113433"]
[BlackFideId "6380166"]
[WhiteElo "2124"]
[BlackElo "2305"]
[Result "1-0"]
[Round "02"]
[TimeControl "180+1"]
[Date "2022.01.26"]
[WhiteClock "0:00:07"]
[BlackClock "0:00:02"]

1. e4 {[%clk 0:03:00]}  c6 {[%clk 0:02:57]} 2. Nf3 {[%clk 0:02:57]}  d5 {[%clk 0:02:58]} 3. d3 {[%clk 0:02:54]}  dxe4 {[%clk 0:02:55]} 4. dxe4 {[%clk 0:02:55]}  Qxd1+ {[%clk 0:02:55]} 5. Kxd1 {[%clk 0:02:55]}  Bg4 {[%clk 0:02:55]} 6. Be2 {[%clk 0:02:54]}  Bxf3 {[%clk 0:02:44]} 7. Bxf3 {[%clk 0:02:51]}  Nd7 {[%clk 0:02:43]} 8. Be2 {[%clk 0:02:50]}  O-O-O {[%clk 0:02:43]} 9. f3 {[%clk 0:02:46]}  g6 {[%clk 0:02:41]} 10. Be3 {[%clk 0:02:44]}  Bh6 {[%clk 0:02:40]} 11. Bxh6 {[%clk 0:02:38]}  Nxh6 {[%clk 0:02:41]} 12. c3 {[%clk 0:02:36]}  f5 {[%clk 0:02:40]} 13. Nd2 {[%clk 0:02:31]}  Nf7 {[%clk 0:02:25]} 14. Kc2 {[%clk 0:02:27]}  Nf6 {[%clk 0:02:08]} 15. Rad1 {[%clk 0:02:09]}  Kc7 {[%clk 0:01:40]} 16. Rhe1 {[%clk 0:02:02]}  e5 {[%clk 0:01:37]} 17. Bc4 {[%clk 0:01:55]}  Nd6 {[%clk 0:01:26]} 18. exf5 {[%clk 0:01:53]}  Nxf5 {[%clk 0:01:25]} 19. Rxe5 {[%clk 0:01:49]}  Rhe8 {[%clk 0:01:25]} 20. Rde1 {[%clk 0:01:46]}  Rxe5 {[%clk 0:01:25]} 21. Rxe5 {[%clk 0:01:47]}  Nd7 {[%clk 0:01:24]} 22. Re2 {[%clk 0:01:41]}  Nb6 {[%clk 0:01:20]} 23. Bd3 {[%clk 0:01:40]}  Nd5 {[%clk 0:01:16]} 24. Bxf5 {[%clk 0:01:38]}  gxf5 {[%clk 0:01:16]} 25. g3 {[%clk 0:01:31]}  Rd7 {[%clk 0:01:11]} 26. f4 {[%clk 0:01:29]}  Nf6 {[%clk 0:01:10]} 27. Re5 {[%clk 0:01:25]}  Ng4 {[%clk 0:01:10]} 28. Re2 {[%clk 0:01:23]}  c5 {[%clk 0:00:45]} 29. h3 {[%clk 0:01:19]}  Nf6 {[%clk 0:00:45]} 30. Re5 {[%clk 0:01:17]}  Nd5 {[%clk 0:00:45]} 31. a3 {[%clk 0:01:10]}  b6 {[%clk 0:00:42]} 32. c4 {[%clk 0:01:07]}  Ne7 {[%clk 0:00:41]} 33. Nb1 {[%clk 0:01:01]}  Nc6 {[%clk 0:00:41]} 34. Rd5 {[%clk 0:00:54]}  Nd4+ {[%clk 0:00:39]} 35. Kd3 {[%clk 0:00:51]}  Rg7 {[%clk 0:00:36]} 36. g4 {[%clk 0:00:45]}  fxg4 {[%clk 0:00:37]} 37. hxg4 {[%clk 0:00:45]}  Rxg4 {[%clk 0:00:38]} 38. Nc3 {[%clk 0:00:42]}  Rxf4 {[%clk 0:00:29]} 39. Rh5 {[%clk 0:00:37]}  Rf7 {[%clk 0:00:25]} 40. Rh6 {[%clk 0:00:37]}  Kd7 {[%clk 0:00:14]} 41. Nd5 {[%clk 0:00:35]}  Nf5 {[%clk 0:00:06]} 42. Rxh7 {[%clk 0:00:32]}  Rxh7 {[%clk 0:00:07]} 43. Nf6+ {[%clk 0:00:33]}  Ke6 {[%clk 0:00:07]} 44. Nxh7 {[%clk 0:00:33]}  Ke5 {[%clk 0:00:06]} 45. Nf8 {[%clk 0:00:32]}  Kd6 {[%clk 0:00:05]} 46. Ng6 {[%clk 0:00:31]}  Nd4 {[%clk 0:00:05]} 47. Nf4 {[%clk 0:00:31]}  Nb3 {[%clk 0:00:05]} 48. Nd5 {[%clk 0:00:30]}  Na5 {[%clk 0:00:04]} 49. Nc3 {[%clk 0:00:29]}  Nc6 {[%clk 0:00:04]} 50. Nb5+ {[%clk 0:00:27]}  Ke5 {[%clk 0:00:05]} 51. Kc3 {[%clk 0:00:25]}  Ke4 {[%clk 0:00:05]} 52. Nd6+ {[%clk 0:00:22]}  Ke3 {[%clk 0:00:05]} 53. Nc8 {[%clk 0:00:21]}  Ke4 {[%clk 0:00:04]} 54. b4 {[%clk 0:00:21]}  Ke5 {[%clk 0:00:04]} 55. b5 {[%clk 0:00:20]}  Nb8 {[%clk 0:00:04]} 56. Nxa7 {[%clk 0:00:19]}  Kd6 {[%clk 0:00:04]} 57. Nc8+ {[%clk 0:00:15]}  Kc7 {[%clk 0:00:05]} 58. Ne7 {[%clk 0:00:14]}  Kd6 {[%clk 0:00:05]} 59. Nd5 {[%clk 0:00:15]}  Nd7 {[%clk 0:00:05]} 60. a4 {[%clk 0:00:14]}  Ke5 {[%clk 0:00:05]} 61. Kd3 {[%clk 0:00:14]}  Kd6 {[%clk 0:00:05]} 62. Kc3 {[%clk 0:00:13]}  Ke5 {[%clk 0:00:05]} 63. Kb3 {[%clk 0:00:13]}  Kd6 {[%clk 0:00:05]} 64. a5 {[%clk 0:00:13]}  bxa5 {[%clk 0:00:05]} 65. Ka4 {[%clk 0:00:14]}  Ne5 {[%clk 0:00:05]} 66. Ne3 {[%clk 0:00:11]}  Kc7 {[%clk 0:00:05]} 67. Kxa5 {[%clk 0:00:11]}  Kb7 {[%clk 0:00:06]} 68. Ka4 {[%clk 0:00:10]}  Nf3 {[%clk 0:00:04]} 69. Kb3 {[%clk 0:00:09]}  Nd4+ {[%clk 0:00:05]} 70. Kc3 {[%clk 0:00:09]}  Ne2+ {[%clk 0:00:06]} 71. Kd3 {[%clk 0:00:09]}  Nc1+ {[%clk 0:00:04]} 72. Ke4 {[%clk 0:00:09]}  Nb3 {[%clk 0:00:03]} 73. Kd5 {[%clk 0:00:09]}  Kb6 {[%clk 0:00:04]} 74. Ng4 {[%clk 0:00:08]}  Ka5 {[%clk 0:00:04]} 75. Ne5 {[%clk 0:00:09]}  Kb4 {[%clk 0:00:04]} 76. Nd3+ {[%clk 0:00:09]}  Ka5 {[%clk 0:00:04]} 77. Nxc5 {[%clk 0:00:10]}  Nd2 {[%clk 0:00:04]} 78. Ne4 {[%clk 0:00:09]}  Nb3 {[%clk 0:00:03]} 79. Nc5 {[%clk 0:00:09]}  Nd2 {[%clk 0:00:02]} 80. Nd7 {[%clk 0:00:08]}  Kb4 {[%clk 0:00:02]} 81. b6 {[%clk 0:00:08]}  Nxc4 {[%clk 0:00:02]} 82. b7 {[%clk 0:00:09]}  Ne3+ {[%clk 0:00:02]} 83. Kc6 {[%clk 0:00:09]}  Kc4 {[%clk 0:00:02]} 84. b8=Q {[%clk 0:00:08]}  Nf5 {[%clk 0:00:03]} 85. Qe5 {[%clk 0:00:07]}  Nd4+ {[%clk 0:00:02]} 86. Kb7 {[%clk 0:00:07]}  Nb5 {[%clk 0:00:02]} 87. Qc5+ {[%clk 0:00:07]} 1-0


[Site "https://www.chess.com"]

[Event "Titled Tuesday Blitz January 25 2022"]
[White "Odegov, Artem"]
[Black "Urazayev, Arystanbek"]
[WhiteFideId "34183644"]
[BlackFideId "13709810"]
[WhiteElo "2277"]
[BlackElo "2321"]
[Result "1/2-1/2"]
[Round "02"]
[TimeControl "180+1"]
[Date "2022.01.26"]
[WhiteClock "0:00:05"]
[BlackClock "0:00:09"]

1. d4 {[%clk 0:02:57]}  d5 {[%clk 0:02:59]} 2. c4 {[%clk 0:02:57]}  e6 {[%clk 0:02:59]} 3. Nf3 {[%clk 0:02:57]}  h6 {[%clk 0:02:59]} 4. Nc3 {[%clk 0:02:58]}  Nf6 {[%clk 0:03:00]} 5. Bf4 {[%clk 0:02:57]}  Bd6 {[%clk 0:02:59]} 6. Ne5 {[%clk 0:02:56]}  O-O {[%clk 0:02:44]} 7. e3 {[%clk 0:02:55]}  c5 {[%clk 0:02:41]} 8. Be2 {[%clk 0:02:54]}  Nc6 {[%clk 0:02:39]} 9. O-O {[%clk 0:02:49]}  cxd4 {[%clk 0:02:27]} 10. exd4 {[%clk 0:02:48]}  dxc4 {[%clk 0:02:28]} 11. Nxc6 {[%clk 0:02:28]}  bxc6 {[%clk 0:02:28]} 12. Be5 {[%clk 0:02:29]}  Nd5 {[%clk 0:02:07]} 13. Ne4 {[%clk 0:02:14]}  Bxe5 {[%clk 0:01:58]} 14. dxe5 {[%clk 0:02:15]}  Rb8 {[%clk 0:01:56]} 15. Bxc4 {[%clk 0:01:39]}  Rxb2 {[%clk 0:01:38]} 16. Bb3 {[%clk 0:01:36]}  Nf4 {[%clk 0:01:36]} 17. Qf3 {[%clk 0:01:18]}  Ne2+ {[%clk 0:01:35]} 18. Kh1 {[%clk 0:01:18]}  Qd4 {[%clk 0:01:28]} 19. Rad1 {[%clk 0:01:13]}  Qxe5 {[%clk 0:01:27]} 20. Qe3 {[%clk 0:00:53]}  Ba6 {[%clk 0:01:00]} 21. Rfe1 {[%clk 0:00:40]}  Nf4 {[%clk 0:00:36]} 22. Nc5 {[%clk 0:00:31]}  Qxe3 {[%clk 0:00:20]} 23. fxe3 {[%clk 0:00:32]}  Nxg2 {[%clk 0:00:21]} 24. Nxa6 {[%clk 0:00:30]}  Nxe1 {[%clk 0:00:21]} 25. Rxe1 {[%clk 0:00:30]}  Rd8 {[%clk 0:00:22]} 26. Nb4 {[%clk 0:00:11]}  Rdd2 {[%clk 0:00:21]} 27. Nxc6 {[%clk 0:00:09]}  Rxh2+ {[%clk 0:00:21]} 28. Kg1 {[%clk 0:00:10]}  a6 {[%clk 0:00:20]} 29. Rc1 {[%clk 0:00:08]}  Rbg2+ {[%clk 0:00:20]} 30. Kf1 {[%clk 0:00:08]}  Kh7 {[%clk 0:00:16]} 31. Ne5 {[%clk 0:00:07]}  a5 {[%clk 0:00:14]} 32. Nxf7 {[%clk 0:00:04]}  Rf2+ {[%clk 0:00:13]} 33. Kg1 {[%clk 0:00:04]}  Rhg2+ {[%clk 0:00:14]} 34. Kh1 {[%clk 0:00:05]}  a4 {[%clk 0:00:12]} 35. Bxe6 {[%clk 0:00:03]}  Rh2+ {[%clk 0:00:12]} 36. Kg1 {[%clk 0:00:02]}  Rfg2+ {[%clk 0:00:13]} 37. Kf1 {[%clk 0:00:03]}  g6 {[%clk 0:00:10]} 38. Ne5 {[%clk 0:00:02]}  Kg7 {[%clk 0:00:07]} 39. Nf3 {[%clk 0:00:02]}  Rf2+ {[%clk 0:00:07]} 40. Kg1 {[%clk 0:00:02]}  Rhg2+ {[%clk 0:00:07]} 41. Kh1 {[%clk 0:00:03]}  Rg3 {[%clk 0:00:07]} 42. Bd5 {[%clk 0:00:04]}  Rfxf3 {[%clk 0:00:06]} 43. Bxf3 {[%clk 0:00:05]}  Rxf3 {[%clk 0:00:07]} 44. Rc4 {[%clk 0:00:05]}  a3 {[%clk 0:00:05]} 45. Rc3 {[%clk 0:00:06]}  g5 {[%clk 0:00:05]} 46. Rxa3 {[%clk 0:00:06]}  Rf2 {[%clk 0:00:05]} 47. Kg1 {[%clk 0:00:06]}  Rb2 {[%clk 0:00:04]} 48. Ra6 {[%clk 0:00:06]}  h5 {[%clk 0:00:05]} 49. a4 {[%clk 0:00:07]}  g4 {[%clk 0:00:05]} 50. a5 {[%clk 0:00:05]}  h4 {[%clk 0:00:05]} 51. Rb6 {[%clk 0:00:05]}  Ra2 {[%clk 0:00:05]} 52. a6 {[%clk 0:00:05]}  h3 {[%clk 0:00:02]} 53. Rb4 {[%clk 0:00:05]}  g3 {[%clk 0:00:02]} 54. Rg4+ {[%clk 0:00:05]}  Kf6 {[%clk 0:00:03]} 55. Rxg3 {[%clk 0:00:06]}  Rxa6 {[%clk 0:00:04]} 56. Rxh3 {[%clk 0:00:06]}  Ke5 {[%clk 0:00:04]} 57. Kf2 {[%clk 0:00:06]}  Rf6+ {[%clk 0:00:05]} 58. Ke2 {[%clk 0:00:06]}  Ra6 {[%clk 0:00:05]} 59. Rh4 {[%clk 0:00:06]}  Ra1 {[%clk 0:00:05]} 60. Kf3 {[%clk 0:00:07]}  Rf1+ {[%clk 0:00:05]} 61. Ke2 {[%clk 0:00:07]}  Ra1 {[%clk 0:00:05]} 62. Rd4 {[%clk 0:00:07]}  Rh1 {[%clk 0:00:05]} 63. Ra4 {[%clk 0:00:07]}  Rb1 {[%clk 0:00:05]} 64. Kd2 {[%clk 0:00:06]}  Rh1 {[%clk 0:00:06]} 65. Rd4 {[%clk 0:00:04]}  Ra1 {[%clk 0:00:06]} 66. Rc4 {[%clk 0:00:03]}  Rh1 {[%clk 0:00:06]} 67. Kd3 {[%clk 0:00:03]}  Rd1+ {[%clk 0:00:06]} 68. Ke2 {[%clk 0:00:04]}  Rh1 {[%clk 0:00:07]} 69. Rc5+ {[%clk 0:00:05]}  Ke4 {[%clk 0:00:07]} 70. Rb5 {[%clk 0:00:05]}  Rh2+ {[%clk 0:00:07]} 71. Kd1 {[%clk 0:00:05]}  Kd3 {[%clk 0:00:07]} 72. Rb3+ {[%clk 0:00:04]}  Ke4 {[%clk 0:00:07]} 73. Ra3 {[%clk 0:00:04]}  Rf2 {[%clk 0:00:08]} 74. Rb3 {[%clk 0:00:04]}  Rg2 {[%clk 0:00:08]} 75. Ra3 {[%clk 0:00:04]}  Rf2 {[%clk 0:00:08]} 76. Rb3 {[%clk 0:00:05]}  Rg2 {[%clk 0:00:09]} 77. Ra3 {[%clk 0:00:05]}  Rf2 {[%clk 0:00:09]} 1/2-1/2


[Site "https://www.chess.com"]